{"text_format":"1","workbook":"xlsx","n_sheets":11,"sheets":["Kontrollzentrum","Kostenstellenplan","Kostenstellenschluessel","Personal","Maschinenstundensaetze","Verrechnungssaetze","Kostenstellensumme","Kalkulation","Historie","Stammdaten","Tabelle1"],"not_rendered":{"charts":0,"images":1,"macros":1,"external_links":0,"defined_names":1,"comments":6,"pivot_tables":0},"unopened":[],"bounds":{"document_bytes":16777216,"sheet_cells":100000,"rows_first":2000,"rows_last":500,"rows_between":2000,"halvings":0,"cell_chars":16384,"cell_head_chars":4096},"cells_cut":0,"cells_raw":0,"read":"whole","date_system":"1900"}

{"sheet":"Kontrollzentrum","index":0,"n_rows":12,"n_cols":5,"rows_kept":12,"cut":false,"hidden":false,"merged":[]}
[]
[null,"KOSTENRECHNUNG AUFBAUEN"]
[null,null,"Prozess","Link","Funktionsmakro auslösen"]
[null,"1.","Kostenstelleplan definineren\nIm ersten Schritt definieren Sie den Kostenstellenplan. Dabei legen Sie die Haupt- und Nebenkostenstellen und bestimmen, ob für die einzelnen Kostenstellen ein Verrechnungssatz und ein Maschinenstundesatz begildet werden soll.","Kostenstellenplan!A1"]
[null,"2.","Kontenblätter generieren\nWurden die Kostenstellen definiert, müssen Sie entsprechende Kontenblätter erstellen, um die Kosten auf die Kostenstellen buchen zu können. ","Kostenstellenplan!A1"]
[null,"3. ","Kosten auf Kostenstellen buchen und Kostenstellenschlüssel übernehmen\nSind alle Kontenblätt erzeugt, beginnen Sie z. B. auf Basis der GuV die Kosten über die Kontenblätter auf den jeweiligen Kostenstellen zuzuordnen. Dabei beachten Sie, dass die Kosten mit einer Verbuchungsart versehen werden können, die deren weitere Verrechnung, z. B. als \"AFA\" im Maschinenstundensatz, steuert. \nKosten die dabei nicht eindeutig einer Kostestelle zugeordnet werden können müssen auf dem Blatt \"Kostenstelleschlüssel\" aufgeschlüsselt und dabei anteiligt den relevanten Kostenstellen zugeordnet werden. Sofern alle Kosten erfasst sind, können Sie diese automatisch übernommen werden.","Kostenstellenschluessel!A1"]
[null,"4.","Personalkostentabelle erzeugen und einpflegen\nErzeugen Sie zunächst das Personalblatt, in dem die eingegebene Kostenstellstruktur automatisch übernommen wird. Dann geben Sie auf dem Blatt \"Personal\" die Personalkosten ein, die in den Verrechnungssätzen automatisch berücksichtigt werden.","Personal!A1"]
[null,"5. ","Maschinenstundensätze erzeugen\nErzeugen Sie für die in im Kostenstellenplan festgelegten Maschinen bzw. Maschinengruppen einen Maschinenstundensatz. Hierbei werden automatisch die jeweiligen Kosten aus den zugehörigen Kostenstellen übernommen.","Maschinenstundensaetze!A1"]
[null,"6.","Verrechnungssätze erzeugen und SOLL-Leistung bestimmen\nErzeugen Sie die Tabelle zur Berechung der Verrechnungssätze. Hierbei werden die in im Kostenstellenplan berücksichtigten Verrechnungsätze verwendet. Danach ergänzen Sie im Blatt \"Verrechnugssätze\" die SOLL-Leistung der einzelnen Maschinen bzw.. Maschinengruppen.","Verrechnungssaetze!A1"]
[null,"7.","Sonstige Personalkosten übernehmen\nEinige Personlkosten werden nicht direkt in die Verrechnugssätze eingerechnet. Diese müssen an dieser Stelle in die Kontenblätter übernommen werden.","Personal!A1"]
[null,"8.","Kostenstellensumme und Gemeinkostenzuschläge bilden\nNach Eingabe, Übernahme und Berechnung aller Kosten kann das Blatt \"Kostenstellensumme\" erstellt werden und auf Basis der Materilkosten, Umsatzvorgabe und Gewinnvorgabe die Gemeinkostensätze berechnet werden.","Kostenstellensumme!A1"]
[null,9,"Kalkulationsblatt erzeugen\nWenn alle vorherigen Schritte durchgeführt wurden, erzeugen Sie das Kalkulationsblatt.","Kalkulation!A1"]

{"sheet":"Kostenstellenplan","index":1,"n_rows":2,"n_cols":7,"rows_kept":2,"cut":false,"hidden":false,"merged":[]}
["Art (H/N)","Kostenstellen-Nr.","Kostenstellen-Bezeichnung","Hauptkostenstelle","Kostenstelle Beschreibung","Verrechnungssatz","Maschinenstundensatz"]
[null,"<Zahl>","<TEXT>",null,"<grob beschreiben, was in der KST verbucht wird>"]

{"sheet":"Kostenstellenschluessel","index":2,"n_rows":1,"n_cols":8,"rows_kept":1,"cut":false,"hidden":false,"merged":[]}
["ÜBN?","Schlüssel","Konto","Kontenblatt","Kostenstelle","Kosten Bezugsperiode","Anteil Prozent","Verbuchungsart"]

{"sheet":"Personal","index":3,"n_rows":2,"n_cols":14,"rows_kept":2,"cut":false,"hidden":false,"merged":[]}
["Lohnkosten GESAMT",{"$f":"SUM(F:F)","v":0}]
["Personalnummer","Name","Kst","HZ/NZ","Anmerkungen","Kosten ",null,null,"KST"," EUR HZ "," EUR NZ ","ANZ HZ","ANZ NZ"," SUMME "]

{"sheet":"Maschinenstundensaetze","index":4,"n_rows":1,"n_cols":11,"rows_kept":1,"cut":false,"hidden":false,"merged":[]}
["Maschine / Kosten je Periode","SOLL-Leistung","Kostenstelle","Abschreibung","Raumkosten","Instandhaltung","Energie","Werkzeuge","Gemeinkosten","Gesamtkosten","Kostensatz je Einheit"]

{"sheet":"Verrechnungssaetze","index":5,"n_rows":1,"n_cols":23,"rows_kept":1,"cut":false,"hidden":false,"merged":[]}
["KST","Bezeichnung","HKST zu NKST","Wochen","Arbeitstage Woche","Einheit der Leistungsmessung (zB ST, MIN, KG)","Tagesleistung Einheit","Anzahl der Produktiv-einheiten","Tagesleistung / Einheiten","Wochenleistung / Einheiten","Produktivitätsfaktor (%)","SOLL-Jahresleistung","Kosten Personal der KST für HZ (€)","Kosten Personal der KST für NZ (€)","Kosten Personal der HKST (Overhead)","Anteil Overhead Personal HKST %","Anteil Overhead Personal HKST €","Summe der Personalkosten (€)","SUMME PERSONALKOSTEN / EINHEIT (€)","Maschinekostensatz je Einheit (€)","Fertigungsgemeinkosten zu Kostenstellen / Einheit (€)","SUMME Fertigungskosten / Einheit (€)","JE EINHEIT"]

{"sheet":"Kostenstellensumme","index":6,"n_rows":8,"n_cols":5,"rows_kept":8,"cut":false,"hidden":false,"merged":[]}
["KZtr","Basisdaten","Materialkosten","Umsatzvorgabe","Vorsteuergewinn (EBT in %)"]
[null,"Normierte Vorgaben per Anno",0,0,0]
[null,"Normierte Selbstkosten",null,{"$f":" D2 / (1+E2)","v":0}]
[null,"Kalkulatorisches Ergebnis",null,{"$f":" D2 - D3","v":0}]
[]
[]
[]
[null,null,null,null,"z"]

{"sheet":"Kalkulation","index":7,"n_rows":16,"n_cols":11,"rows_kept":16,"cut":false,"hidden":false,"merged":[[1,2,1,3]]}
["BASISDATEN",null,"Einheit","Anzahl",null,null,null,null,null,"ZUSCHLÄGE","aus Kostenstellsumme"]
[null,"Kunde",null,null,"Nummer",null,"Ersteller",null,null,"MGK-Zuschlag",{"$f":"Kostenstellensumme!#REF!","v":{"$error":"#REF!"}}]
["EAUF","Einheiten im Auftag",null,null,null,null,"Letzes Update",null,null,"FGK-Zuschlag",{"$f":"Kostenstellensumme!#REF!","v":{"$error":"#REF!"}}]
["PAUS","(Plan/Ist-)Ausschuss",null,null,null,null,"Planausschuss (%)",{"$f":"D4/(D3+D4)","v":{"$error":"#DIV/0!"}},null,"GK-Zuschlag",{"$f":"Kostenstellensumme!#REF!","v":{"$error":"#REF!"}}]
["MATERIALDATEN DES GESAMTAUFTRAGS (!)",null,null,1]
[null,"Materialart","Einheit",null,"Menge",null,null," SUMME "]
[110,null,null,null,null,null,null,{"$f":"E7*D7","v":0}]
[110,null,null,null,null,null,null,{"$f":"E8*D8","v":0}]
[120,null,null,null,null,null,null,0]
[4,null,null,null,null,null,null,0]
[5,null,null,null,null,null,null,0]
[6,null,null,null,null,null,null,0]
[7,null,null,null,null,null,null,0]
["Kosten Material: SUMME",null,null,null,null,null,null,{"$f":"SUM(H7:H13)","v":0}]
[]
["ARBEITSPLAN","Fertigungsstufe","EUR/Einheit","RZ Auftrag","FZ Einheit","RK je Einheit","FK je Einheit","GES RK+FK je Einheit","Ausschussanteil % am Gesamtauftrag","Ausschusskosten enthalten in den Fertigungskosten","Kumulierte Ausschusskosten enthalten in den Fertigungskosten"]

{"sheet":"Historie","index":8,"n_rows":3,"n_cols":17,"rows_kept":3,"cut":false,"hidden":false,"merged":[]}
[null,"Anzahl Daten",{"$f":"COUNT(J:J)","v":0},null,"Letze Änderung","2016-04-12"]
[]
[null,"Datum","Kunde","Auftrags-Nr.","Ersteller","Einheiten Auftrag","Planausschuss","Rüstzeit","Fertigungszeit","Rüstkosten","Fertigungskosten","GES RK+FK","Ausschussskosten","Materialkosten","Herstellkosten","Selbstkosten","Geschrieben am"]

{"sheet":"Stammdaten","index":9,"n_rows":2,"n_cols":4,"rows_kept":2,"cut":false,"hidden":false,"merged":[]}
["HIER NICHTS ÄNDERN!"]
["Liste Kostenstellen","# KST","Bez der HKST","Bez des KST Blattes"]

{"sheet":"Tabelle1","index":10,"n_rows":20,"n_cols":12,"rows_kept":20,"cut":false,"hidden":false,"merged":[]}
[110,"CNC Fräsen",{"$f":"VLOOKUP(A1,Verrechnungssaetze!#REF!,22,FALSE)","v":{"$error":"#REF!"}},10,5,{"$f":"(D1*C1)/(#REF!)","v":{"$error":"#REF!"}},{"$f":"C1*E1","v":{"$error":"#REF!"}},{"$f":"F1+G1","v":{"$error":"#REF!"}},{"$f":"#REF!/(#REF!+#REF!)","v":{"$error":"#REF!"}},{"$f":"I1*H1","v":{"$error":"#REF!"}},{"$f":"J1","v":{"$error":"#REF!"}},"sollte der Rüstanteil auf alle Teile (Gutware + Ausschuss) oder nur auf die Gutteile verteilt werden?"]
[120,"Drehen",{"$f":"VLOOKUP(A2,Verrechnungssaetze!#REF!,22,FALSE)","v":{"$error":"#REF!"}},10,5,{"$f":"(D2*C2)/(#REF!+#REF!)","v":{"$error":"#REF!"}},{"$f":"C2*E2","v":{"$error":"#REF!"}},{"$f":"F2+G2","v":{"$error":"#REF!"}},{"$f":"#REF!/(#REF!+#REF!)","v":{"$error":"#REF!"}},{"$f":"I2*H2","v":{"$error":"#REF!"}},{"$f":"J2+ K1","v":{"$error":"#REF!"}}]
[210,"Stanzen",{"$f":"VLOOKUP(A3,Verrechnungssaetze!#REF!,22,FALSE)","v":{"$error":"#REF!"}},10,5,{"$f":"(D3*C3)/(#REF!+#REF!)","v":{"$error":"#REF!"}},{"$f":"C3*E3","v":{"$error":"#REF!"}},{"$f":"F3+G3","v":{"$error":"#REF!"}},{"$f":"#REF!/(#REF!+#REF!)","v":{"$error":"#REF!"}},{"$f":"I3*H3","v":{"$error":"#REF!"}},{"$f":"J3+ K2","v":{"$error":"#REF!"}}]
[220,"Biegen",{"$f":"VLOOKUP(A4,Verrechnungssaetze!#REF!,22,FALSE)","v":{"$error":"#REF!"}},10,5,{"$f":"(D4*C4)/(#REF!+#REF!)","v":{"$error":"#REF!"}},{"$f":"C4*E4","v":{"$error":"#REF!"}},{"$f":"F4+G4","v":{"$error":"#REF!"}},{"$f":"#REF!/(#REF!+#REF!)","v":{"$error":"#REF!"}},{"$f":"I4*H4","v":{"$error":"#REF!"}},{"$f":"J4+ K3","v":{"$error":"#REF!"}}]
[230,"Drehen",{"$f":"VLOOKUP(A5,Verrechnungssaetze!#REF!,22,FALSE)","v":{"$error":"#REF!"}},10,5,{"$f":"(D5*C5)/(#REF!+#REF!)","v":{"$error":"#REF!"}},{"$f":"C5*E5","v":{"$error":"#REF!"}},{"$f":"F5+G5","v":{"$error":"#REF!"}},{"$f":"#REF!/(#REF!+#REF!)","v":{"$error":"#REF!"}},{"$f":"I5*H5","v":{"$error":"#REF!"}},{"$f":"J5+ K4","v":{"$error":"#REF!"}}]
["Kosten Fertigung: SUMME",null,{"$f":"SUM(C1:C5)","v":{"$error":"#REF!"}},50,25,{"$error":"#REF!"},{"$error":"#REF!"},{"$error":"#REF!"},null,{"$f":"SUM(J1:J5)","v":{"$error":"#REF!"}}]
[]
["KALKULATION",null,null,null,null,null,"EINHEIT","AUFTRAG"]
[null,"Materialkosten Gutware",null,null,null,null,{"$f":"#REF!/(#REF!+#REF!)","v":{"$error":"#REF!"}},{"$f":"G9*#REF!","v":{"$error":"#REF!"}}]
[null,"+ Materialgemeinkosten",{"$f":"#REF!","v":{"$error":"#REF!"}},null,null,null,{"$f":"#REF!*H9","v":{"$error":"#REF!"}},{"$f":"#REF!*H9*#REF!","v":{"$error":"#REF!"}}]
[null,"Materialkosten Ausschuss",null,null,null,null,{"$f":"#REF!/(#REF!+#REF!)","v":{"$error":"#REF!"}},{"$f":"G11*#REF!","v":{"$error":"#REF!"}}]
[null,"Maertialgemeinkosten Ausschuss"]
[null,"Materialkosten: SUMME",null,null,null,null,{"$f":"G9+G10","v":{"$error":"#REF!"}},{"$f":"(H9+H10)","v":{"$error":"#REF!"}}]
[null,"Fertigungskosten HGutware",null,null,null,null,{"$f":"H6","v":{"$error":"#REF!"}},{"$f":"H6*(#REF!+#REF!)","v":{"$error":"#REF!"}}]
[null,"+ Fertigungsgemeinkosten",{"$f":"#REF!","v":{"$error":"#REF!"}},null,null,null,{"$f":"#REF!*G14","v":{"$error":"#REF!"}},{"$f":"G15*(#REF!+#REF!)","v":{"$error":"#REF!"}}]
[null,"Fertigungskosten Ausschuss",null,null,null,null,{"$f":"J6","v":{"$error":"#REF!"}},{"$f":"J6*#REF!","v":{"$error":"#REF!"}}]
[null,"Fertigungskosten: SUMME",null,null,null,null,{"$f":"G15+G16","v":{"$error":"#REF!"}},{"$f":"G17*(#REF!+#REF!)","v":{"$error":"#REF!"}}]
[null,"Herstellkosten",null,null,null,null,{"$f":"G15+G17","v":{"$error":"#REF!"}},{"$f":"(H15+H17)","v":{"$error":"#REF!"}}]
[null,"Gemeinkostenzuschlag",{"$f":"#REF!","v":{"$error":"#REF!"}},null,null,null,{"$f":"#REF!*G18","v":{"$error":"#REF!"}},{"$f":"#REF!*H18*(#REF!+#REF!)","v":{"$error":"#REF!"}}]
[null,"Selbstkosten",null,null,null,null,{"$f":"G18+G19","v":{"$error":"#REF!"}},{"$f":"H18+H19","v":{"$error":"#REF!"}}]